fUST/lending_fUST_20240723
["ID","MTS","AMOUNT","RATE_DAILY","PERIOD"]
[332926797,1721681463096,-740.31,0.00015616,2]
[332926798,1721681463107,-941.88,0.00015616,2]
[332926799,1721681463117,-1442.48,0.00015616,2]
[332926800,1721681463127,-500.0,0.00015616,2]
[332926801,1721681463137,-500.0,0.00015616,2]
[332926802,1721681463147,-526.39599564,0.00015616,2]
[332926803,1721681463156,-500.0,0.00015616,2]
[332926804,1721681463166,-319.43952288,0.00015616,2]
[332926805,1721681463175,-333.59,0.00015616,2]
[332926806,1721681463185,-486.97,0.00015616,2]
[332926807,1721681463199,-500.0,0.00015616,2]
[332926808,1721681463210,-2358.94,0.00015616,2]
[332926809,1721681463219,-667.65,0.00015616,2]
[332926810,1721681463229,-500.0,0.00015616,2]
[332926811,1721681463238,-500.0,0.00015616,2]
[332926812,1721681463248,-500.0,0.00015616,2]
[332926813,1721681463257,-500.0,0.00015616,2]
[332926814,1721681463266,-524.14,0.00015616,2]
[332926815,1721681463276,-500.0,0.00015616,2]
[332926816,1721681463287,-500.0,0.00015616,2]
[332926817,1721681463296,-615.18,0.00015616,2]
[332926818,1721681463306,-2089.36,0.00015616,2]
[332926819,1721681463316,-652.17,0.00015616,2]
[332926820,1721681463326,-500.0,0.00015616,2]
[332926821,1721681463335,-502.56,0.00015616,2]
[332926822,1721681463344,-1234.39,0.00015616,2]
[332926823,1721681463354,-500.0,0.00015616,2]
[332926824,1721681463363,-500.0,0.00015616,2]
[332926825,1721681463372,-500.0,0.00015616,2]
[332926826,1721681463382,-600.8,0.00015616,2]
[332926827,1721681463390,-784.16,0.00015616,2]
[332926828,1721681463399,-570.88,0.00015616,2]
[332926829,1721681463408,-565.52765715,0.00015616,2]
[332926830,1721681463415,-500.0,0.00015616,2]
[332926831,1721681463422,-500.0,0.00015616,2]
[332926832,1721681463429,-962.14,0.00015616,2]
[332926833,1721681463437,-440.32,0.00015616,2]
[332926834,1721681463449,-500.0,0.00015616,2]
[332926835,1721681463457,-978.53,0.00015616,2]
[332926836,1721681463465,-500.0,0.00015616,2]
[332926837,1721681463473,-696.68,0.00015616,2]
[332926838,1721681463480,-500.0,0.00015616,2]
[332926839,1721681463487,-1096.52,0.00015616,2]
[332926840,1721681463494,-500.0,0.00015616,2]
[332926841,1721681463502,-500.0,0.00015616,2]
[332926842,1721681463511,-500.0,0.00015616,2]
[332926843,1721681463518,-500.0,0.00015616,2]
[332926844,1721681463526,-637.7,0.00015616,2]
[332926845,1721681463536,-500.0,0.00015616,2]
[332926846,1721681463546,-500.0,0.00015616,2]
[332926847,1721681463556,-166.26,0.00015616,2]
[332926848,1721681463565,-500.0,0.00015616,2]
[332926849,1721681463575,-500.0,0.00015616,2]
[332926850,1721681463585,-500.0,0.00015616,2]
[332926851,1721681463594,-231.76,0.00015616,2]
[332926852,1721681463604,-500.0,0.00015616,2]
[332926853,1721681463613,-500.0,0.00015616,2]
[332926854,1721681463623,-500.0,0.00015616,2]
[332926855,1721681463633,-500.0,0.00015616,2]
[332926856,1721681463643,-500.0,0.00015616,2]
[332926857,1721681463653,-500.0,0.00015616,2]
[332926858,1721681463662,-1030.13,0.00015616,2]
[332926859,1721681463673,-500.0,0.00015616,2]
[332926860,1721681463683,-500.0,0.00015616,2]
[332926861,1721681463694,-500.0,0.00015616,2]
[332926862,1721681463704,-552.23,0.00015616,2]
[332926863,1721681463714,-500.0,0.00015616,2]
[332926864,1721681463724,-500.0,0.00015616,2]
[332926865,1721681463734,-500.0,0.00015616,2]
[332926866,1721681463744,-500.0,0.00015616,2]
[332926867,1721681463755,-500.0,0.00015616,2]
[332926868,1721681463765,-500.0,0.00015616,2]
[332926869,1721681463879,-524.6,0.00015616,2]
[332926870,1721681463891,-819.36,0.00015616,2]
[332926871,1721681463901,-286.45378467,0.00015616,2]
[332926872,1721681463913,-500.0,0.00015616,2]
[332926873,1721681463922,-500.0,0.00015616,2]
[332926874,1721681463933,-500.0,0.00015616,2]
[332926875,1721681463945,-500.0,0.00015616,2]
[332926876,1721681463955,-417.89309372,0.00015616,2]
[332926877,1721681463967,-500.0,0.00015616,2]
[332926878,1721681463977,-500.0,0.00015616,2]
[332926879,1721681463987,-500.0,0.00015616,2]
[332926880,1721681463997,-500.0,0.00015616,2]
[332926881,1721681464006,-500.0,0.00015616,2]
[332926882,1721681464016,-500.0,0.00015616,2]
[332926883,1721681464026,-430.2,0.00015616,2]
[332926884,1721681464035,-500.0,0.00015616,2]
[332926885,1721681464045,-500.0,0.00015616,2]
[332926886,1721681464055,-500.0,0.00015616,2]
[332926887,1721681464064,-500.0,0.00015616,2]
[332926888,1721681464074,-500.0,0.00015616,2]
[332926889,1721681464084,-500.0,0.00015616,2]
[332926890,1721681464093,-500.0,0.00015616,2]
[332926891,1721681464104,-211.96,0.00015616,2]
[332926892,1721681464114,-500.0,0.00015616,2]
[332926893,1721681464124,-500.0,0.00015616,2]
[332926894,1721681464134,-500.0,0.00015616,2]
[332926895,1721681464144,-500.0,0.00015616,2]
[332926896,1721681464154,-500.0,0.00015616,2]
[332926897,1721681464163,-500.0,0.00015616,2]
[332926898,1721681464173,-208.22625167,0.00015616,2]
[332926899,1721681464183,-500.0,0.00015616,2]
[332926900,1721681464195,-500.0,0.00015616,2]
[332926901,1721681464204,-500.0,0.00015616,2]
[332926902,1721681464214,-500.0,0.00015616,2]
[332926903,1721681464223,-500.0,0.00015616,2]
[332926904,1721681464233,-500.0,0.00015616,2]
[332926905,1721681464243,-500.0,0.00015616,2]
[332926906,1721681464252,-500.0,0.00015616,2]
[332926907,1721681464262,-261.05353704,0.00015616,2]
[332926908,1721681464272,-500.0,0.00015616,2]
[332926909,1721681464282,-500.0,0.00015616,2]
[332926910,1721681464292,-500.0,0.00015616,2]
[332926911,1721681464303,-500.0,0.00015616,2]
[332926912,1721681464313,-500.0,0.00015616,2]
[332926913,1721681464323,-500.0,0.00015616,2]
[332926914,1721681464333,-500.0,0.00015616,2]
[332926915,1721681464342,-500.0,0.00015616,2]
[332926916,1721681464351,-555.72,0.00015616,2]
[332926917,1721681464363,-500.0,0.00015616,2]
[332926918,1721681464372,-500.0,0.00015616,2]
[332926919,1721681464381,-500.0,0.00015616,2]
[332926920,1721681464392,-500.0,0.00015616,2]
[332926921,1721681464401,-500.0,0.00015616,2]
[332926922,1721681464412,-500.0,0.00015616,2]
[332926923,1721681464421,-500.0,0.00015616,2]
[332926924,1721681464431,-500.0,0.00015616,2]
[332926925,1721681464442,-500.0,0.00015616,2]
[332926926,1721681464452,-626.98,0.00015616,2]
[332926927,1721681464462,-500.0,0.00015616,2]
[332926928,1721681464472,-500.0,0.00015616,2]
[332926929,1721681464481,-500.0,0.00015616,2]
[332926930,1721681464491,-500.0,0.00015616,2]
[332926931,1721681464500,-500.0,0.00015616,2]
[332926932,1721681464510,-500.0,0.00015616,2]
[332926933,1721681464520,-500.0,0.00015616,2]
[332926934,1721681464530,-376.6,0.00015616,2]
[332926935,1721681464540,-500.0,0.00015616,2]
[332926936,1721681464550,-500.0,0.00015616,2]
[332926937,1721681464559,-500.0,0.00015616,2]
[332926938,1721681464569,-500.0,0.00015616,2]
[332926939,1721681464579,-500.0,0.00015616,2]
[332926940,1721681464589,-500.0,0.00015616,2]
[332926941,1721681464599,-556.1,0.00015616,2]
[332926942,1721681464609,-232.80705897,0.00015616,2]
[332926943,1721681464618,-500.0,0.00015616,2]
[332926944,1721681464627,-500.0,0.00015616,2]
[332926945,1721681464637,-500.0,0.00015616,2]
[332926946,1721681464647,-500.0,0.00015616,2]
[332926947,1721681464656,-595.18392844,0.00015616,2]
[332926948,1721681464666,-500.0,0.00015616,2]
[332926949,1721681464675,-500.0,0.00015616,2]
[332926950,1721681464685,-500.0,0.00015616,2]
[332926951,1721681464696,-500.0,0.00015616,2]
[332926952,1721681464706,-500.0,0.00015616,2]
[332926953,1721681464715,-500.0,0.00015616,2]
[332926954,1721681464724,-500.0,0.00015616,2]
[332926955,1721681464734,-500.0,0.00015616,2]
[332926956,1721681464743,-500.0,0.00015616,2]
[332926957,1721681464753,-623.3,0.00015616,2]
[332926958,1721681464762,-500.0,0.00015616,2]
[332926959,1721681464772,-500.0,0.00015616,2]
[332926960,1721681464782,-500.0,0.00015616,2]
[332926961,1721681464792,-640.58,0.00015616,2]
[332926962,1721681464801,-578.99,0.00015616,2]
[332926963,1721681464812,-500.0,0.00015616,2]
[332926964,1721681464821,-500.0,0.00015616,2]
[332926965,1721681464830,-500.0,0.00015616,2]
[332926966,1721681464840,-341.4,0.00015616,2]
[332926967,1721681464849,-500.0,0.00015616,2]
[332926968,1721681464859,-500.0,0.00015616,2]
[332926969,1721681464869,-582.62,0.00015616,2]
[332926970,1721681464879,-500.0,0.00015616,2]
[332926971,1721681464889,-500.0,0.00015616,2]
[332926972,1721681464899,-500.0,0.00015616,2]
[332926973,1721681464909,-500.0,0.00015616,2]
[332926974,1721681464918,-500.0,0.00015616,2]
[332926975,1721681464927,-500.0,0.00015616,2]
[332926976,1721681464937,-511.87,0.00015616,2]
[332926977,1721681464949,-300.5969755,0.00015626,2]
[332926978,1721681464959,-153.0,0.00015626,2]
[332926979,1721681464969,-306.0,0.00015626,2]
[332926980,1721681464979,-306.0,0.00015626,2]
[332926981,1721681464989,-153.0,0.00015626,2]
[332926982,1721681464999,-206.6425332,0.00015626,2]
[332926983,1721681465009,-206.6425332,0.00015626,2]
[332926984,1721681465019,-153.0,0.00015626,2]
[332926985,1721681465030,-153.0,0.00015626,2]
[332926986,1721681465040,-206.6425332,0.00015626,2]
[332926987,1721681465051,-306.0,0.00015626,2]
[332926988,1721681465062,-2519.71671576,0.00015626,2]
[332926989,1721681465073,-167.387979,0.00015672,2]
[332926990,1721681465083,-195.906949,0.00015672,2]
[332926991,1721681465094,-319799.05613138,0.00015707,2]
[332926992,1721681465105,-151.0,0.00015707,2]
[332926993,1721681465117,-151.0,0.00015707,2]
[332926994,1721681465127,-151.0,0.00015707,2]
[332926995,1721681465139,-151.0,0.00015707,2]
[332926996,1721681465150,-151.0,0.00015707,2]
[332926997,1721681465161,-151.0,0.00015707,2]
[332926998,1721681465171,-151.0,0.00015707,2]
[332926999,1721681465182,-151.0,0.00015707,2]
[332927000,1721681465202,-244.231556,0.00015707,2]
[332927001,1721681465214,-151.0,0.00015707,2]
[332927002,1721681465224,-196.751752,0.00015707,2]
[332927003,1721681465234,-196.751752,0.00015707,2]
[332927004,1721681465244,-151.0,0.00015707,2]
[332927005,1721681465254,-151.0,0.00015707,2]
[332927006,1721681465264,-156.820474,0.00015707,2]
[332927007,1721681465275,-196.48811,0.00015707,2]
[332927008,1721681465285,-156.820474,0.00015707,2]
[332927009,1721681465295,-196.48811,0.00015707,2]
[332927010,1721681465304,-151.0,0.00015707,2]
[332927011,1721681465315,-151.0,0.00015707,2]
[332927012,1721681465325,-224.50165,0.00015707,2]
[332927013,1721681465334,-224.50165,0.00015707,2]
[332927014,1721681465343,-151.0,0.00015707,2]
[332927015,1721681465353,-151.0,0.00015707,2]
[332927016,1721681465363,-151.0,0.00015707,2]
[332927017,1721681465372,-53064.15054415,0.00015709,2]
[332927018,1721681465382,-151.0,0.00015709,2]
[332927019,1721681465392,-1392.829506,0.00015712,2]
[332927020,1721681465401,-740.31,0.0001589,2]
[332927021,1721681465412,-941.88,0.0001589,2]
[332927022,1721681465422,-1442.48,0.0001589,2]
[332927023,1721681465433,-500.0,0.0001589,2]
[332927024,1721681465445,-500.0,0.0001589,2]
[332927025,1721681465454,-500.0,0.0001589,2]
[332927026,1721681465464,-500.0,0.0001589,2]
[332927027,1721681465474,-2358.94,0.0001589,2]
[332927028,1721681465485,-667.65,0.0001589,2]
[332927029,1721681465496,-500.0,0.0001589,2]
[332927030,1721681465508,-500.0,0.0001589,2]
[332927031,1721681465604,-540.9,0.0001589,2]
[332927032,1721681465614,-500.0,0.0001589,2]
[332927033,1721681465625,-524.14,0.0001589,2]
[332927034,1721681465635,-500.0,0.0001589,2]
[332927035,1721681465644,-500.0,0.0001589,2]
[332927036,1721681465654,-615.18,0.0001589,2]
[332927037,1721681465666,-2089.36,0.0001589,2]
[332927038,1721681465676,-652.17,0.0001589,2]
[332927039,1721681465687,-500.0,0.0001589,2]
[332927040,1721681465699,-502.56,0.0001589,2]
[332927041,1721681465710,-1234.39,0.0001589,2]
[332927042,1721681465721,-500.0,0.0001589,2]
[332927043,1721681465730,-500.0,0.0001589,2]
[332927044,1721681465741,-500.0,0.0001589,2]
[332927045,1721681465751,-600.8,0.0001589,2]
[332927046,1721681465761,-784.16,0.0001589,2]
[332927047,1721681465771,-570.88,0.0001589,2]
[332927048,1721681465781,-500.0,0.0001589,2]
[332927049,1721681465791,-500.0,0.0001589,2]
[332927050,1721681465801,-962.14,0.0001589,2]
[332927051,1721681465812,-500.0,0.0001589,2]
[332927052,1721681465822,-978.53,0.0001589,2]
[332927053,1721681465832,-517.33,0.0001589,2]
[332927054,1721681465841,-696.68,0.0001589,2]
[332927055,1721681465851,-500.0,0.0001589,2]
[332927056,1721681465861,-1096.52,0.0001589,2]
[332927057,1721681465873,-500.0,0.0001589,2]
[332927058,1721681465885,-500.0,0.0001589,2]
[332927059,1721681465895,-500.0,0.0001589,2]
[332927060,1721681465905,-500.0,0.0001589,2]
[332927061,1721681465915,-637.7,0.0001589,2]
[332927062,1721681465925,-500.0,0.0001589,2]
[332927063,1721681465936,-500.0,0.0001589,2]
[332927064,1721681465950,-500.0,0.0001589,2]
[332927065,1721681465959,-500.0,0.0001589,2]
[332927066,1721681465969,-500.0,0.0001589,2]
[332927067,1721681465979,-500.0,0.0001589,2]
[332927068,1721681465988,-500.0,0.0001589,2]
[332927069,1721681465997,-500.0,0.0001589,2]
[332927070,1721681466006,-500.0,0.0001589,2]
[332927071,1721681466015,-500.0,0.0001589,2]
[332927072,1721681466024,-171.29,0.0001589,2]
[332927073,1721681466033,-1030.13,0.0001589,2]
[332927074,1721681466043,-500.0,0.0001589,2]
[332927075,1721681466052,-500.0,0.0001589,2]
[332927076,1721681466063,-500.0,0.0001589,2]
[332927077,1721681466072,-552.23,0.0001589,2]
[332927078,1721681466083,-500.0,0.0001589,2]
[332927079,1721681466092,-500.0,0.0001589,2]
[332927080,1721681466102,-500.0,0.0001589,2]
[332927081,1721681466111,-500.0,0.0001589,2]
[332927082,1721681466122,-500.0,0.0001589,2]
[332927083,1721681466131,-500.0,0.0001589,2]
[332927084,1721681466140,-524.6,0.0001589,2]
[332927085,1721681466150,-819.36,0.0001589,2]
[332927086,1721681466159,-500.0,0.0001589,2]
[332927087,1721681466169,-500.0,0.0001589,2]
[332927088,1721681466179,-500.0,0.0001589,2]
[332927089,1721681466190,-500.0,0.0001589,2]
[332927090,1721681466205,-500.0,0.0001589,2]
[332927091,1721681466218,-500.0,0.0001589,2]
[332927092,1721681466228,-500.0,0.0001589,2]
[332927093,1721681466238,-500.0,0.0001589,2]
[332927094,1721681466249,-500.0,0.0001589,2]
[332927095,1721681466258,-500.0,0.0001589,2]
[332927096,1721681466268,-500.0,0.0001589,2]
[332927097,1721681466278,-500.0,0.0001589,2]
[332927098,1721681466288,-339.08,0.0001589,2]
[332927099,1721681466298,-500.0,0.0001589,2]
[332927100,1721681466307,-500.0,0.0001589,2]
[332927101,1721681466317,-500.0,0.0001589,2]
[332927102,1721681466326,-500.0,0.0001589,2]
[332927103,1721681466336,-500.0,0.0001589,2]
[332927104,1721681466346,-500.0,0.0001589,2]
[332927105,1721681466356,-500.0,0.0001589,2]
[332927106,1721681466366,-500.0,0.0001589,2]
[332927107,1721681466376,-500.0,0.0001589,2]
[332927108,1721681466386,-500.0,0.0001589,2]
[332927109,1721681466396,-500.0,0.0001589,2]
[332927110,1721681466405,-500.0,0.0001589,2]
[332927111,1721681466415,-500.0,0.0001589,2]
[332927112,1721681466425,-500.0,0.0001589,2]
[332927113,1721681466435,-500.0,0.0001589,2]
[332927114,1721681466447,-500.0,0.0001589,2]
[332927115,1721681466458,-500.0,0.0001589,2]
[332927116,1721681466467,-500.0,0.0001589,2]
[332927117,1721681466478,-500.0,0.0001589,2]
[332927118,1721681466488,-581.59517477,0.0001589,2]
[332927119,1721681466499,-500.0,0.0001589,2]
[332927120,1721681466508,-500.0,0.0001589,2]
[332927121,1721681466517,-500.0,0.0001589,2]
[332927122,1721681466527,-500.0,0.0001589,2]
[332927123,1721681466536,-500.0,0.0001589,2]
[332927124,1721681466546,-500.0,0.0001589,2]
[332927125,1721681466555,-500.0,0.0001589,2]
[332927126,1721681466568,-500.0,0.0001589,2]
[332927127,1721681466579,-500.0,0.0001589,2]
[332927128,1721681466589,-500.0,0.0001589,2]
[332927129,1721681466599,-500.0,0.0001589,2]
[332927130,1721681466610,-500.0,0.0001589,2]
[332927131,1721681466620,-598.50153424,0.0001589,2]
[332927132,1721681466630,-500.0,0.0001589,2]
[332927133,1721681466639,-500.0,0.0001589,2]
[332927134,1721681466650,-500.0,0.0001589,2]
[332927135,1721681466660,-500.0,0.0001589,2]
[332927136,1721681466671,-500.0,0.0001589,2]
[332927137,1721681466680,-500.0,0.0001589,2]
[332927138,1721681466692,-500.0,0.0001589,2]
[332927139,1721681466701,-500.0,0.0001589,2]
[332927140,1721681466711,-500.0,0.0001589,2]
[332927141,1721681466721,-500.0,0.0001589,2]
[332927142,1721681466730,-500.0,0.0001589,2]
[332927143,1721681466740,-500.0,0.0001589,2]
[332927144,1721681466749,-500.0,0.0001589,2]
[332927145,1721681466759,-500.0,0.0001589,2]
[332927146,1721681466769,-500.0,0.0001589,2]
[332927147,1721681466779,-500.0,0.0001589,2]
[332927148,1721681466788,-500.0,0.0001589,2]
[332927149,1721681466798,-500.0,0.0001589,2]
[332927150,1721681466808,-500.0,0.0001589,2]
[332927151,1721681466818,-500.0,0.0001589,2]
[332927152,1721681466828,-548.66,0.0001589,2]
[332927153,1721681466838,-522.94335517,0.0001589,2]
[332927154,1721681466847,-578.61257649,0.0001589,2]
[332927155,1721681466858,-524.39,0.0001589,2]
[332927156,1721681466867,-500.0,0.0001589,2]
[332927157,1721681466878,-500.0,0.0001589,2]
[332927158,1721681466888,-578.99,0.0001589,2]
[332927159,1721681466897,-500.0,0.0001589,2]
[332927160,1721681466906,-500.0,0.0001589,2]
[332927161,1721681466917,-500.0,0.0001589,2]
[332927162,1721681466927,-500.0,0.0001589,2]
[332927163,1721681466939,-500.0,0.0001589,2]
[332927164,1721681466951,-500.0,0.0001589,2]
[332927165,1721681466961,-500.0,0.0001589,2]
[332927166,1721681466972,-160.05,0.0001589,2]
[332927167,1721681466982,-500.0,0.0001589,2]
[332927168,1721681466993,-500.0,0.0001589,2]
[332927169,1721681467004,-486.72595464,0.0001589,2]
[332927170,1721681467015,-250.34989462,0.00015954,2]
[332927171,1721681467025,-100021.871667,0.00016,2]
[332927172,1721681467034,-3000.0,0.00016,2]
[332927173,1721681467043,-3000.0,0.0001601,2]
[332927174,1721681467052,-151.0,0.0001601,2]
[332927175,1721681467062,-3000.0,0.0001602,2]
[332927176,1721681467071,-3000.0,0.0001603,2]
[332927177,1721681467080,-3000.0,0.0001604,2]
[332927178,1721681467090,-3000.0,0.0001605,2]
[332927179,1721681467100,-3000.0,0.0001606,2]
[332927180,1721681467194,-195.906949,0.00016064,2]
[332927181,1721681467208,-167.387979,0.00016064,2]
[332927182,1721681467218,-3000.0,0.0001607,2]
[332927183,1721681467228,-151.0,0.0001608,2]
[332927184,1721681467239,-175.174591,0.0001608,2]
[332927185,1721681467249,-175.174591,0.0001608,2]
[332927186,1721681467259,-3000.0,0.0001608,2]
[332927187,1721681467268,-3000.0,0.0001609,2]
[332927188,1721681467282,-67176.6485784,0.00016094,2]
[332927189,1721681467292,-3000.0,0.000161,2]
[332927190,1721681467302,-3000.0,0.0001611,2]
[332927191,1721681467312,-3000.0,0.0001612,2]
[332927192,1721681467321,-3000.0,0.0001613,2]
[332927193,1721681467332,-151.0,0.0001614,2]
[332927194,1721681467341,-151.0,0.0001614,2]
[332927195,1721681467351,-3000.0,0.0001614,2]
[332927196,1721681467360,-3000.0,0.0001615,2]
[332927197,1721681467370,-3000.0,0.0001616,2]
[332927198,1721681467380,-740.31,0.00016164,2]
[332927199,1721681467389,-941.88,0.00016164,2]
[332927200,1721681467399,-1442.48,0.00016164,2]
[332927201,1721681467408,-500.0,0.00016164,2]
[332927202,1721681467417,-500.0,0.00016164,2]
[332927203,1721681467427,-500.0,0.00016164,2]
[332927204,1721681467436,-500.0,0.00016164,2]
[332927205,1721681467448,-2358.94,0.00016164,2]
[332927206,1721681467457,-667.65,0.00016164,2]
[332927207,1721681467467,-500.0,0.00016164,2]
[332927208,1721681467476,-500.0,0.00016164,2]
[332927209,1721681467486,-500.0,0.00016164,2]
[332927210,1721681467496,-524.14,0.00016164,2]
[332927211,1721681467505,-500.0,0.00016164,2]
[332927212,1721681467514,-500.0,0.00016164,2]
[332927213,1721681467524,-615.18,0.00016164,2]
[332927214,1721681467534,-2089.36,0.00016164,2]
[332927215,1721681467544,-489.53917669,0.00016164,2]
[332927216,1721681467554,-652.17,0.00016164,2]
[332927217,1721681467564,-502.56,0.00016164,2]
[332927218,1721681467574,-1234.39,0.00016164,2]
[332927219,1721681467584,-500.0,0.00016164,2]
[332927220,1721681467594,-500.0,0.00016164,2]
[332927221,1721681467603,-500.0,0.00016164,2]
[332927222,1721681467613,-600.8,0.00016164,2]
[332927223,1721681467623,-784.16,0.00016164,2]
[332927224,1721681467633,-570.88,0.00016164,2]
[332927225,1721681467643,-500.0,0.00016164,2]
[332927226,1721681467653,-500.0,0.00016164,2]
[332927227,1721681467662,-962.14,0.00016164,2]
[332927228,1721681467672,-500.0,0.00016164,2]
[332927229,1721681467681,-978.53,0.00016164,2]
[332927230,1721681467691,-696.68,0.00016164,2]
[332927231,1721681467700,-500.0,0.00016164,2]
[332927232,1721681467710,-1096.52,0.00016164,2]
[332927233,1721681467720,-440.75,0.00016164,2]
[332927234,1721681467729,-152.56,0.00016164,2]
[332927235,1721681467739,-500.0,0.00016164,2]
[332927236,1721681467749,-500.0,0.00016164,2]
[332927237,1721681467758,-637.7,0.00016164,2]
[332927238,1721681467768,-500.0,0.00016164,2]
[332927239,1721681467777,-421.69,0.00016164,2]
[332927240,1721681467786,-500.0,0.00016164,2]
[332927241,1721681467796,-500.0,0.00016164,2]
[332927242,1721681467805,-500.0,0.00016164,2]
[332927243,1721681467815,-500.0,0.00016164,2]
[332927244,1721681467826,-500.0,0.00016164,2]
[332927245,1721681467835,-500.0,0.00016164,2]
[332927246,1721681467844,-500.0,0.00016164,2]
[332927247,1721681467855,-500.0,0.00016164,2]
[332927248,1721681467865,-1030.13,0.00016164,2]
[332927249,1721681467876,-500.0,0.00016164,2]
[332927250,1721681467887,-500.0,0.00016164,2]
[332927251,1721681467897,-500.0,0.00016164,2]
[332927252,1721681467906,-552.23,0.00016164,2]
[332927253,1721681467915,-500.0,0.00016164,2]
[332927254,1721681467925,-402.78,0.00016164,2]
[332927255,1721681467935,-500.0,0.00016164,2]
[332927256,1721681467947,-500.0,0.00016164,2]
[332927257,1721681467957,-500.0,0.00016164,2]
[332927258,1721681467966,-483.38,0.00016164,2]
[332927259,1721681467977,-524.6,0.00016164,2]
[332927260,1721681467987,-819.36,0.00016164,2]
[332927261,1721681467996,-500.0,0.00016164,2]
[332927262,1721681468005,-500.0,0.00016164,2]
[332927263,1721681468014,-362.42,0.00016164,2]
[332927264,1721681468023,-196.35,0.00016164,2]
[332927265,1721681468032,-500.0,0.00016164,2]
[332927266,1721681468042,-500.0,0.00016164,2]
[332927267,1721681468051,-163.18,0.00016164,2]
[332927268,1721681468060,-500.0,0.00016164,2]
[332927269,1721681468069,-500.0,0.00016164,2]
[332927270,1721681468079,-500.0,0.00016164,2]
[332927271,1721681468089,-183.83,0.00016164,2]
[332927272,1721681468100,-500.0,0.00016164,2]
[332927273,1721681468110,-500.0,0.00016164,2]
[332927274,1721681468120,-500.0,0.00016164,2]
[332927275,1721681468130,-500.0,0.00016164,2]
[332927276,1721681468141,-217.80450371,0.00016164,2]
[332927277,1721681468152,-374.33,0.00016164,2]
[332927278,1721681468165,-500.0,0.00016164,2]
[332927279,1721681468175,-500.0,0.00016164,2]
[332927280,1721681468185,-500.0,0.00016164,2]
[332927281,1721681468199,-500.0,0.00016164,2]
[332927282,1721681468210,-500.0,0.00016164,2]
[332927283,1721681468219,-173.62,0.00016164,2]
[332927284,1721681468231,-500.0,0.00016164,2]
[332927285,1721681468243,-500.0,0.00016164,2]
[332927286,1721681468254,-500.0,0.00016164,2]
[332927287,1721681468266,-500.0,0.00016164,2]
[332927288,1721681468279,-500.0,0.00016164,2]
[332927289,1721681468291,-500.0,0.00016164,2]
[332927290,1721681468301,-500.0,0.00016164,2]
[332927291,1721681468310,-500.0,0.00016164,2]
[332927292,1721681468320,-500.0,0.00016164,2]
[332927293,1721681468330,-500.0,0.00016164,2]
[332927294,1721681468341,-500.0,0.00016164,2]
[332927295,1721681468351,-500.0,0.00016164,2]
[332927296,1721681468363,-500.0,0.00016164,2]